bitfinex/quotes_SOLUSD_20250416
["timestamp","ask_amount","ask_price","bid_price","bid_amount"]
[1744839276769,0.063,132.83,132.82,76.43801128]
[1744839277080,0.063,132.83,132.82,50.29584971]
[1744839277276,0.063,132.83,132.82,57.36187771]
[1744839278060,0.063,132.83,132.82,23.83289112]
[1744839278271,0.063,132.83,132.81,23.83289112]
[1744839278470,0.063,132.83,132.82,23.83289112]
[1744839278971,0.063,132.83,132.82,53.83289112]
[1744839279473,0.063,132.83,132.82,30.0]
[1744839280961,0.20516157,132.83,132.82,30.0]
[1744839281175,24.03805269,132.83,132.78,23.83289112]
[1744839281362,7.52955349,132.81,132.79,30.0]
[1744839281584,82.8,132.8,132.79,30.0]
[1744839281766,7.52955349,132.81,132.79,30.0]
[1744839282278,7.52955349,132.81,132.76,40.89289112]
[1744839282580,112.95905269,132.8,132.77,30.0]
[1744839283295,82.8,132.79,132.77,30.0]
[1744839283475,7.5312547,132.78,132.77,30.0]
[1744839284190,7.5312547,132.78,132.74,23.83289112]
[1744839284493,82.8,132.77,132.74,23.83289112]
[1744839284994,90.33186813,132.77,132.74,23.83289112]
[1744839285174,82.8,132.77,132.74,23.83289112]
[1744839286282,82.8,132.77,132.74,31.36639972]
[1744839286483,82.8,132.77,132.76,23.83289112]
[1744839287674,82.8,132.79,132.76,23.83289112]
[1744839287877,82.8,132.79,132.78,23.83289112]
[1744839288178,82.8,132.82,132.78,23.83289112]
[1744839288377,82.8,132.81,132.78,23.83289112]
[1744839288568,82.8,132.81,132.79,23.83289112]
[1744839289368,82.863,132.83,132.8,23.83289112]
[1744839289664,0.063,132.83,132.82,42.48253998]
[1744839289979,0.063,132.83,132.82,85.82686312]
[1744839290284,0.063,132.85,132.84,44.933972]
[1744839290483,0.063,132.85,132.84,68.76686312]
[1744839290683,1e-08,132.86,132.85,66.59975424]
[1744839290890,0.063,132.89,132.88,26.0]
[1744839291080,0.063,132.89,132.88,85.82686312]
[1744839291277,0.063,132.89,132.88,100.00653352]
[1744839291483,0.063,132.89,132.88,100.14869509]
[1744839291671,1e-08,132.89,132.88,103.92661491]
[1744839292275,1e-08,132.89,132.88,107.67428208]
[1744839292878,1e-08,132.89,132.88,69.51955899]
[1744839293078,1e-08,132.89,132.88,107.53212051]
[1744839294806,1e-08,132.89,132.82,6.0085553]
[1744839294969,1e-08,132.89,132.84,68.01256152]
[1744839295170,1e-08,132.89,132.86,0.28432314]
[1744839295390,1e-08,132.89,132.88,26.0]
[1744839296194,38.01256153,132.89,132.85,17.06]
[1744839296372,38.01256152,132.88,132.85,17.06]
[1744839296568,38.01256152,132.88,132.85,43.06]
[1744839296992,38.01256152,132.87,132.84,26.17729182]
[1744839297309,38.01256152,132.87,132.84,7.52764296]
[1744839297591,38.01256152,132.86,132.84,7.52764296]
[1744839297980,38.01256152,132.85,132.82,18.64964886]
[1744839298181,38.01256152,132.85,132.81,17.06]
[1744839298490,38.01256152,132.82,132.79,7.53054887]
[1744839298691,38.01256152,132.81,132.78,7.5312547]
[1744839298892,38.01256152,132.81,132.8,26.0]
[1744839299293,38.01256152,132.81,132.77,43.52560932]
[1744839299591,38.01256152,132.78,132.77,17.06]
[1744839299779,38.01256152,132.78,132.77,26.0]
[1744839300187,38.01256152,132.78,132.74,26.18295592]
[1744839300416,38.01256152,132.75,132.73,24.59393348]
[1744839300594,38.01256152,132.74,132.73,26.0]
[1744839300902,38.01256152,132.74,132.72,0.03]
[1744839301103,38.01256152,132.73,132.72,0.03]
[1744839301491,38.01256152,132.73,132.72,30.03]
[1744839302080,76.16728461,132.73,132.72,30.03]
[1744839302278,76.16728461,132.73,132.72,0.03]
[1744839302502,76.45160775,132.73,132.72,0.03]
[1744839302681,38.15472309,132.71,132.7,0.03]
[1744839302892,0.14216157,132.7,132.63,0.03]
[1744839303091,38.01256152,132.67,132.66,0.03]
[1744839311809,38.01256152,132.68,132.66,0.03]
[1744839316815,38.01256152,132.69,132.66,0.03]
[1744839316993,82.8,132.68,132.66,0.03]
[1744839317904,82.8,132.68,132.66,38.04256152]
[1744839318308,82.8,132.68,132.67,7.53749905]
[1744839318693,82.8,132.71,132.67,45.55006057]
[1744839321927,82.8,132.71,132.67,64.39380821]
[1744839322804,82.8,132.71,132.68,38.01256152]
[1744839323005,82.8,132.72,132.68,64.01256152]
[1744839323204,82.8,132.72,132.68,49.83832666]
[1744839324124,82.8,132.72,132.69,7.53636295]
[1744839329419,82.8,132.72,132.69,31.37468961]
[1744839329726,82.8,132.75,132.71,49.83832666]
[1744839330725,82.8,132.75,132.72,23.83832666]
[1744839331120,82.8,132.75,132.73,7.53409176]
[1744839331627,23.83832666,132.74,132.73,7.53409176]
[1744839332003,23.83832666,132.74,132.72,7.53440594]
[1744839333307,23.83832666,132.73,132.72,7.53440594]
[1744839333502,23.83832666,132.73,132.7,7.53579502]
[1744839333723,23.83832666,132.72,132.7,7.53579502]
[1744839335639,23.83832666,132.72,132.69,7.53636295]
[1744839336441,23.83832666,132.73,132.69,7.53636295]
[1744839336744,23.83832666,132.72,132.69,7.53636295]
[1744839337540,23.83832666,132.71,132.68,7.53670572]
[1744839337840,106.63832666,132.7,132.66,33.56782984]
[1744839338011,106.63832666,132.69,132.66,7.56782984]
[1744839339044,106.63832666,132.69,132.66,0.03]
[1744839340727,23.83832666,132.67,132.66,0.03]
[1744839347416,31.37582571,132.67,132.66,0.03]
[1744839353844,57.37582571,132.67,132.66,0.03]
[1744839354046,26.0,132.65,132.64,0.03]
[1744839354256,91.14313803,132.65,132.64,0.03]
[1744839354546,98.68177353,132.65,132.64,0.03]
[1744839354929,104.98247353,132.65,132.64,0.03]
[1744839355645,123.63212239,132.65,132.64,0.03]
[1744839355825,123.63212239,132.65,132.64,1e-08]
[1744839356246,83.05432313,132.63,132.62,0.03]
[1744839356448,31.80458366,132.63,132.62,0.03]
[1744839357143,76.45423252,132.63,132.62,0.03]
[1744839359247,50.26481137,132.61,132.6,0.03]
[1744839359648,44.64964886,132.57,132.56,0.03]
[1744839359856,0.42648471,132.55,132.52,1.4514304]
[1744839360031,18.64964886,132.56,132.52,1.4514304]
[1744839360032,82.8,132.56,132.52,1.4514304]
[1744839360349,82.8,132.56,132.52,32.83575857]
[1744839360747,82.8,132.56,132.52,58.83575857]
[1744839360946,82.8,132.56,132.53,23.83832666]
[1744839361247,23.83832666,132.61,132.55,25.45842666]
[1744839361442,23.83832666,132.61,132.55,27.6201]
[1744839361626,23.83832666,132.61,132.55,51.45842666]
[1744839361830,113.06572666,132.65,132.56,31.38208043]
[1744839362051,23.83832666,132.63,132.57,23.83832666]
[1744839362231,23.83832666,132.64,132.58,23.83832666]
[1744839362436,23.83832666,132.64,132.59,23.83832666]
[1744839362633,23.83832666,132.66,132.6,23.83832666]
[1744839362839,23.83832666,132.67,132.61,23.83832666]
[1744839363956,23.83832666,132.67,132.62,7.54034082]
[1744839364764,23.83832666,132.67,132.61,31.37901973]
[1744839364765,31.43887902,132.67,132.61,31.37901973]
[1744839366035,23.83832666,132.66,132.6,31.37980478]
[1744839366357,23.83832666,132.66,132.61,23.83832666]
[1744839367235,31.37653416,132.66,132.61,7.54079276]
[1744839367663,23.83832666,132.66,132.61,7.54079276]
[1744839367966,23.83832666,132.66,132.61,31.37911942]
[1744839369766,23.83832666,132.66,132.61,7.54079276]
[1744839371450,23.83832666,132.65,132.61,7.54079276]
[1744839372275,17.34432314,132.7,132.61,7.54079276]
[1744839372276,0.063,132.76,132.69,18.64964886]
[1744839372569,0.063,132.76,132.73,23.83832666]
[1744839373257,0.063,132.76,132.75,42.48797552]
[1744839373437,0.063,132.76,132.75,59.50797552]
[1744839373953,0.063,132.76,132.75,67.0409322]
[1744839374548,0.063,132.76,132.75,85.9244866]
[1744839374750,0.063,132.76,132.75,86.20880974]
[1744839374947,0.063,132.78,132.75,90.09993753]
[1744839375144,0.063,132.78,132.77,68.63013709]
[1744839375344,0.063,132.78,132.77,87.51369149]
[1744839375856,0.063,132.78,132.77,87.65585306]
[1744839376045,0.063,132.78,132.77,57.3701486]
[1744839377141,0.063,132.78,132.77,49.83832666]
[1744839377347,0.063,132.78,132.77,57.3701486]
[1744839378567,0.063,132.78,132.77,49.83832666]
[1744839378768,0.063,132.78,132.75,48.39107754]
[1744839378973,0.063,132.78,132.75,17.02]
[1744839384868,23.90132666,132.78,132.75,17.02]
[1744839385861,31.43298524,132.78,132.75,17.02]
[1744839387573,31.43298524,132.78,132.73,26.0]
[1744839387871,82.8,132.77,132.73,26.0]
[1744839388366,90.33184266,132.77,132.73,26.0]
[1744839389368,114.17016932,132.77,132.72,17.02]
[1744839390050,114.17016932,132.77,132.72,40.85832666]
[1744839391372,82.8,132.77,132.74,23.83832666]
[1744839392375,82.8,132.77,132.74,31.37175884]
[1744839393476,82.8,132.77,132.74,23.83832666]
[1744839393676,82.8,132.77,132.73,31.3721762]
[1744839397674,82.8,132.77,132.74,23.83832666]
[1744839399780,82.8,132.77,132.73,31.3721762]
[1744839403685,82.8,132.77,132.75,23.83832666]
[1744839403987,82.8,132.77,132.74,23.83832666]
[1744839404681,82.8,132.77,132.73,7.53384954]
[1744839404879,82.8,132.77,132.74,23.83832666]
[1744839405272,82.8,132.77,132.74,15.2439563]
[1744839407287,82.8,132.77,132.74,22.77745564]
[1744839409194,82.8,132.77,132.74,15.2439563]
[1744839412791,82.8,132.77,132.74,22.77740011]
[1744839415094,82.8,132.77,132.74,15.2439563]
[1744839419796,90.33188661,132.77,132.74,15.2439563]
[1744839420296,82.8,132.77,132.74,15.2439563]
[1744839427698,105.57582053,132.77,132.72,17.02]
[1744839427896,6.5871,132.75,132.72,17.02]
[1744839428090,89.3871,132.75,132.7,15.2439563]
[1744839428394,82.8,132.74,132.71,30.0]
[1744839428986,98.0439563,132.74,132.71,30.0]
[1744839429187,82.8,132.73,132.69,30.0]
[1744839429492,98.0439563,132.72,132.69,30.0]
[1744839429694,7.53522718,132.71,132.69,30.0]
[1744839429994,22.77918348,132.71,132.69,30.0]
[1744839430781,22.77918348,132.71,132.68,0.03]
[1744839431694,7.53636295,132.69,132.68,0.03]
[1744839431889,90.3360011,132.7,132.68,0.03]
[1744839433204,105.5799574,132.7,132.68,0.03]
[1744839433396,90.3360011,132.7,132.68,0.03]
[1744839435303,105.5799574,132.7,132.68,0.03]
[1744839435599,105.58031925,132.69,132.68,0.03]
[1744839436287,105.72248082,132.69,132.68,0.03]
[1744839437088,111.74498082,132.69,132.68,0.03]
[1744839438611,28.94498082,132.69,132.68,0.03]
[1744839439301,55.22930396,132.69,132.68,0.03]
[1744839440791,73.87895282,132.69,132.68,0.03]
[1744839440995,90.85895282,132.69,132.68,0.03]
[1744839441306,19.07613357,132.68,132.67,1e-08]
[1744839441491,0.14216157,132.64,132.62,0.03]
[1744839441694,15.2439563,132.63,132.62,30.03]
[1744839442001,15.38611787,132.63,132.62,30.03]
[1744839442386,15.38611787,132.63,132.62,0.03]
[1744839442782,22.92589016,132.63,132.62,0.03]
[1744839444197,29.07819016,132.63,132.62,0.03]
[1744839444602,29.3625133,132.63,132.62,0.03]
[1744839446892,14.118557,132.63,132.62,0.03]
[1744839447093,1.6404,132.65,132.62,0.03]
[1744839447293,6.6403,132.66,132.62,0.03]
[1744839447493,21.8842563,132.66,132.62,0.03]
[1744839449510,21.8842563,132.66,132.62,7.57034082]
[1744839450010,21.8842563,132.66,132.62,37.57034082]
[1744839450384,29.4223416,132.66,132.62,37.57034082]
[1744839450589,15.2439563,132.65,132.62,37.57034082]
[1744839452188,82.8,132.64,132.62,37.57034082]
[1744839457108,82.8,132.64,132.62,7.57034082]
[1744839457309,82.8,132.64,132.62,0.03]
[1744839457900,82.8,132.63,132.62,0.03]
[1744839460111,82.8,132.63,132.62,30.03]
[1744839463818,98.0439563,132.63,132.62,30.03]
[1744839464118,82.8,132.63,132.62,30.03]
[1744839464898,82.8,132.63,132.62,0.03]
[1744839465921,98.0439563,132.63,132.62,0.03]
[1744839466213,22.78372859,132.63,132.62,0.03]
[1744839466392,22.92589016,132.63,132.62,0.03]
[1744839466921,23.2102133,132.63,132.62,0.03]
[1744839467422,49.2102133,132.63,132.62,0.03]
[1744839468313,67.85986216,132.63,132.62,0.03]
[1744839472508,90.31090943,132.61,132.6,0.03]
[1744839472712,22.78486573,132.61,132.6,0.03]
[1744839474716,29.23096573,132.61,132.6,0.03]
[1744839476838,29.65745044,132.61,132.6,0.03]
[1744839486539,7.54019172,132.63,132.6,0.03]
[1744839486725,15.2439563,132.62,132.6,0.03]
[1744839489040,15.2439563,132.61,132.6,0.03]
[1744839492027,7.53990399,132.63,132.6,0.03]
[1744839492230,15.2439563,132.61,132.6,0.03]
[1744839493323,15.38611787,132.61,132.6,0.03]
[1744839493542,15.67044101,132.61,132.6,0.03]
[1744839493739,60.32008987,132.61,132.6,0.03]
[1744839493941,26.33328855,132.6,132.59,0.03]
[1744839494239,48.36626799,132.6,132.59,30.03]
[1744839494547,48.36626799,132.6,132.59,0.03]
[1744839494737,48.36626799,132.6,132.56,0.03]
[1744839494942,15.38611787,132.57,132.56,0.03]
[1744839496253,22.9293026,132.57,132.56,0.03]
[1744839498349,23.21362574,132.57,132.56,0.03]
[1744839505027,41.8632746,132.57,132.56,0.03]
[1744839506858,101.38964886,132.55,132.54,0.03]
[1744839507155,116.77576673,132.55,132.54,0.03]
[1744839508150,0.14216157,132.54,132.52,1.4514304]
[1744839508341,98.41044101,132.53,132.52,1.4514304]
[1744839510157,105.95590241,132.53,132.52,1.4514304]
[1744839510359,124.60555127,132.53,132.52,1.4514304]
[1744839510659,26.0,132.51,132.5,0.03]
[1744839510834,41.2439563,132.51,132.5,0.03]
[1744839511458,102.64626621,132.51,132.5,0.03]
[1744839511890,121.29591507,132.51,132.5,0.03]
[1744839512070,15.2439563,132.46,132.42,15.16181091]
[1744839512253,15.2439563,132.45,132.42,1.6079]
[1744839512565,15.2439563,132.44,132.42,0.03]
[1744839513152,15.2439563,132.43,132.42,0.03]
[1744839513334,15.38611787,132.43,132.42,0.03]
[1744839514362,41.87124897,132.43,132.42,0.03]
[1744839517870,15.67044101,132.43,132.42,0.03]
[1744839518252,15.2439563,132.43,132.42,0.03]
[1744839518776,15.38611787,132.43,132.42,0.03]
[1744839518960,22.93727697,132.43,132.42,0.03]
[1744839523170,23.22160011,132.43,132.42,0.03]
[1744839531863,41.87124897,132.43,132.42,0.03]
[1744839535476,0.14216157,132.39,132.36,0.03]
[1744839535681,15.2439563,132.37,132.36,0.03]
[1744839535877,98.0139563,132.38,132.36,0.03]
[1744839536777,82.77,132.37,132.36,0.03]
[1744839537378,15.2439563,132.37,132.36,0.03]
[1744839537681,22.79853815,132.37,132.36,0.03]
[1744839538482,42.94,132.41,132.36,0.03]
[1744839538780,15.38611787,132.4,132.36,1.6555]
[1744839539079,22.93914061,132.4,132.36,1.6555]
[1744839539668,15.2439563,132.39,132.36,1.6555]
[1744839540686,0.14216157,132.4,132.36,24.45447946]
[1744839540876,82.8,132.39,132.37,15.2439563]
[1744839542767,82.8,132.41,132.38,22.79796747]
[1744839543188,82.8,132.41,132.38,7.55401117]
[1744839544399,82.8,132.41,132.38,22.79796747]
[1744839544877,82.8,132.41,132.38,7.55401117]
[1744839546173,82.8,132.41,132.38,22.79796747]
[1744839548193,82.8,132.41,132.38,7.55401117]
[1744839550091,82.8,132.41,132.38,22.79796747]
[1744839552699,82.8,132.41,132.38,41.68299541]
[1744839552901,82.8,132.41,132.39,15.2439563]
[1744839553203,82.8,132.44,132.39,15.2439563]
[1744839553386,82.8,132.43,132.39,15.2439563]
[1744839554703,82.8,132.43,132.4,15.2439563]
[1744839554882,82.8,132.43,132.41,7.55229967]
[1744839556284,82.8,132.43,132.42,1.5763]
[1744839556486,98.0439563,132.47,132.42,1.5763]
[1744839556692,82.8,132.46,132.42,1.5763]
[1744839557295,98.0439563,132.46,132.42,1.5763]
[1744839560207,98.0439563,132.46,132.42,9.12782762]
[1744839560610,82.8,132.46,132.42,9.12782762]
[1744839563316,0.063,132.48,132.45,15.2439563]
[1744839569813,0.063,132.48,132.44,15.2439563]
[1744839571487,15.3069563,132.48,132.43,41.2439563]
[1744839571902,98.0439563,132.47,132.42,16.8202563]
[1744839572098,82.8,132.46,132.42,1.5763]
[1744839572409,98.0439563,132.46,132.42,1.5763]
[1744839573414,7.55001887,132.45,132.42,1.5763]
[1744839575105,7.55001887,132.45,132.41,32.1439563]
[1744839577120,7.5511591,132.43,132.4,26.0]
[1744839577421,90.3511591,132.43,132.4,26.0]
[1744839579719,105.5951154,132.43,132.37,32.1439563]
[1744839579927,90.3511591,132.43,132.38,15.2439563]
[1744839580103,105.5951154,132.43,132.38,15.2439563]
[1744839583933,98.0439563,132.42,132.37,32.1439563]
[1744839585026,98.0439563,132.42,132.37,16.9]
[1744839585229,98.0439563,132.42,132.36,42.8306563]
[1744839585726,7.55229967,132.41,132.36,15.2739563]
[1744839586138,22.79625597,132.41,132.36,15.2739563]
[1744839586731,22.79625597,132.41,132.36,0.03]
[1744839586905,22.79625597,132.41,132.36,15.2739563]
[1744839587110,22.79625597,132.41,132.36,14.7739563]
[1744839587510,41.67700515,132.41,132.36,14.7739563]
[1744839587724,7.55344059,132.39,132.35,15.2439563]
[1744839588029,90.35344059,132.39,132.35,15.2439563]
[1744839589035,82.8,132.38,132.34,15.2439563]
[1744839589418,82.8,132.38,132.33,33.7870563]
[1744839589615,98.0439563,132.38,132.33,33.7870563]
[1744839589830,98.0439563,132.38,132.33,32.1439563]
[1744839590034,7.55458185,132.37,132.33,16.9]
[1744839592825,90.35458185,132.37,132.33,16.9]
[1744839593235,105.59853815,132.37,132.33,16.9]
[1744839594147,105.59853815,132.37,132.32,41.2439563]
[1744839594449,15.2439563,132.35,132.32,26.0]
[1744839594627,82.8,132.36,132.31,0.03]
[1744839594628,15.2439563,132.34,132.31,0.03]
[1744839595029,15.2439563,132.34,132.3,35.13067978]
[1744839595030,15.2439563,132.34,132.3,33.55817978]
[1744839595213,15.2439563,132.34,132.3,26.0]
[1744839596138,22.80060491,132.34,132.3,26.0]
[1744839600520,98.0439563,132.3,132.28,0.03]
[1744839600726,82.8,132.3,132.28,0.03]
[1744839600935,98.0439563,132.3,132.28,0.03]
[1744839601115,0.14216157,132.29,132.28,0.03]
[1744839601320,15.38611787,132.29,132.28,0.03]
[1744839601639,21.38811787,132.29,132.28,0.03]
[1744839602136,21.67244101,132.29,132.28,0.03]
[1744839602344,30.51646822,132.29,132.28,0.03]
[1744839603131,30.80079136,132.29,132.28,0.03]
[1744839603331,49.45044022,132.29,132.28,0.03]
[1744839603733,26.14216157,132.27,132.26,2.6237646]
[1744839604044,20.40011043,132.25,132.24,0.03]
[1744839604242,35.92838987,132.25,132.24,0.03]
[1744839604547,50.07492654,132.25,132.24,0.03]
[1744839606050,0.14216157,132.21,132.15,22.81099548]
[1744839606357,22.95045079,132.2,132.14,7.56773119]
[1744839606522,82.8,132.19,132.14,22.81168749]
[1744839606722,82.8,132.19,132.15,15.2439563]
[1744839607448,82.8,132.19,132.16,15.2439563]
[1744839607820,82.8,132.19,132.15,15.2439563]
[1744839608042,15.2439563,132.2,132.14,22.81168749]
[1744839608234,82.8,132.24,132.18,15.2439563]
[1744839608435,82.8,132.23,132.19,7.56486874]
[1744839609243,19.35128405,132.33,132.23,44.64964886]
[1744839609545,19.35128405,132.33,132.27,15.2439563]
[1744839609734,6.2529,132.34,132.29,26.0]
[1744839609939,32.1239563,132.38,132.32,15.2439563]
[1744839610335,39.67820292,132.38,132.32,22.80101113]
[1744839610531,6.2098,132.39,132.33,15.2439563]
[1744839610731,6.2098,132.39,132.34,15.2439563]
[1744839611036,15.2439563,132.43,132.37,15.2439563]
[1744839611229,0.14216157,132.42,132.37,23.95431001]
[1744839611428,0.14216157,132.42,132.38,23.95431001]
[1744839611630,30.16411001,132.44,132.38,23.95431001]
[1744839612133,6.2098,132.44,132.38,23.95431001]
[1744839612438,30.16411001,132.44,132.38,23.95431001]
[1744839612750,16.88,132.45,132.38,7.5538157]
[1744839612933,24.01731001,132.47,132.41,23.95431001]
[1744839613131,0.14216157,132.46,132.41,23.95431001]
[1744839613335,0.063,132.47,132.43,23.95431001]
[1744839614651,0.063,132.47,132.43,31.50506816]
[1744839615755,0.063,132.47,132.45,23.95431001]
[1744839615928,0.063,132.47,132.46,23.95431001]
[1744839616133,0.063,132.47,132.46,42.60395887]
[1744839618154,0.063,132.47,132.46,50.15340776]
[1744839618734,0.063,132.47,132.46,31.5037589]
[1744839618938,0.063,132.47,132.46,23.95431001]
[1744839619135,0.063,132.47,132.45,31.50427696]
[1744839620163,0.063,132.47,132.44,26.0]
[1744839623459,0.063,132.47,132.43,16.88]
[1744839625335,7.61187899,132.47,132.43,16.88]
[1744839625636,23.95431001,132.46,132.41,26.0]
[1744839626054,82.8,132.45,132.41,26.0]
[1744839627551,114.30471883,132.45,132.4,23.95431001]
[1744839628342,106.75431001,132.44,132.39,42.84]
[1744839630474,82.8,132.44,132.39,74.34760802]
[1744839630765,82.8,132.44,132.4,23.95431001]
[1744839632172,82.8,132.44,132.39,50.39329801]
[1744839632465,82.8,132.44,132.4,23.95431001]
[1744839632967,82.8,132.44,132.39,74.34760802]
[1744839633265,90.35062916,132.44,132.39,74.34760802]
[1744839634268,90.35062916,132.44,132.39,66.79431001]
[1744839635666,90.35062916,132.44,132.39,74.34762562]
[1744839636251,90.35062916,132.44,132.39,66.79431001]
[1744839636767,114.30493917,132.44,132.39,42.84]
[1744839639148,23.95431001,132.42,132.36,31.50930003]
[1744839639346,82.8,132.41,132.36,48.34930003]
[1744839640251,90.35270337,132.41,132.36,48.34930003]
[1744839641070,114.30701338,132.41,132.36,16.84]
[1744839644167,114.30701338,132.41,132.36,24.39513628]
[1744839647256,114.30701338,132.41,132.36,48.34944629]
[1744839647855,90.35270337,132.41,132.36,48.34944629]
[1744839648164,120.90484428,132.4,132.35,26.0]
[1744839648351,82.8,132.39,132.35,57.50984488]
[1744839652350,82.8,132.39,132.35,33.55553487]
[1744839653575,90.35345256,132.39,132.35,33.55553487]
[1744839653870,82.8,132.39,132.35,33.55553487]
[1744839654759,90.35346127,132.39,132.35,26.0]
[1744839656668,82.94216157,132.38,132.33,23.95431001]
[1744839656874,82.94216157,132.38,132.32,66.77431001]
[1744839657062,82.8,132.37,132.32,66.77431001]
[1744839657262,82.8,132.37,132.32,58.16060076]
[1744839657569,82.8,132.36,132.32,39.71784132]
[1744839658358,82.8,132.36,132.32,32.16060076]
[1744839658753,82.8,132.36,132.32,39.7179877]
[1744839660379,82.8,132.36,132.32,24.37738694]
[1744839662582,82.8,132.36,132.32,39.7179877]
[1744839664485,82.8,132.36,132.32,24.37738694]
[1744839666464,98.14060076,132.36,132.32,24.37738694]
[1744839668884,82.8,132.36,132.32,24.37738694]
[1744839669087,90.35529574,132.36,132.32,24.37738694]
[1744839669381,105.6958965,132.36,132.32,24.37738694]
[1744839669582,105.6958965,132.36,132.32,16.82]
[1744839669769,105.6958965,132.36,132.32,24.37741942]
[1744839670279,98.14060076,132.36,132.32,24.37741942]
[1744839670662,105.6958013,132.36,132.32,24.37741942]
[1744839672985,15.34060076,132.35,132.31,7.55784465]
[1744839673184,15.34060076,132.34,132.3,26.0]
[1744839674087,21.64580076,132.34,132.3,26.0]
[1744839674288,21.64580076,132.34,132.3,33.55851385]
[1744839674483,21.64580076,132.34,132.3,26.0]
[1744839674678,6.3052,132.34,132.3,26.0]
[1744839674888,90.35520054,132.36,132.31,15.34060076]
[1744839675076,105.6958013,132.36,132.31,15.34060076]
[1744839675267,105.6958013,132.36,132.3,48.89916543]
[1744839675687,105.6958013,132.36,132.3,33.55856467]
[1744839675887,105.6958013,132.36,132.3,48.89916543]
[1744839677087,105.6958013,132.36,132.3,33.55856467]
[1744839677295,22.89648527,132.35,132.3,33.55856467]
[1744839677481,22.89648527,132.35,132.3,48.89916543]
[1744839677791,82.8,132.34,132.3,48.89916543]
[1744839678303,82.8,132.34,132.3,26.0]
[1744839678699,82.8,132.33,132.3,26.0]
[1744839680189,82.8,132.33,132.3,41.34060076]
[1744839680566,82.8,132.33,132.3,26.0]
[1744839684892,82.8,132.33,132.3,41.34060076]
[1744839685093,82.8,132.37,132.32,15.34060076]
[1744839685389,35.70206865,132.41,132.32,15.34060076]
[1744839685390,82.8,132.4,132.36,15.34060076]
[1744839685573,6.3638,132.41,132.39,15.34060076]
[1744839685773,1.5928,132.42,132.39,15.34060076]
[1744839685979,0.063,132.42,132.4,7.55287009]
[1744839686193,0.063,132.42,132.4,22.89347085]
[1744839686974,0.063,132.42,132.4,7.55287009]
[1744839687576,0.063,132.42,132.4,22.89347085]
[1744839689094,0.063,132.42,132.4,7.55287009]
[1744839689294,0.063,132.42,132.4,15.34060076]
[1744839689593,0.063,132.42,132.39,7.55344059]
[1744839689771,0.063,132.42,132.4,15.34060076]
[1744839690398,0.063,132.42,132.4,22.89316123]
[1744839690574,0.063,132.42,132.4,7.55256047]
[1744839690775,0.063,132.42,132.41,15.34060076]
[1744839691092,0.063,132.42,132.41,41.34060076]
[1744839691478,0.063,132.42,132.41,26.0]
[1744839691795,0.063,132.42,132.41,41.34060076]
[1744839692097,0.063,132.42,132.41,26.0]
[1744839692296,0.063,132.42,132.4,7.55256047]
[1744839692495,0.063,132.42,132.4,22.89316123]
[1744839693977,0.063,132.42,132.41,22.89290043]
[1744839695597,0.063,132.42,132.41,67.54254929]
[1744839698693,1e-08,132.42,132.41,41.82687243]
[1744839700774,1e-08,132.42,132.41,47.91589895]
[1744839702190,1e-08,132.42,132.41,41.82687243]
[1744839703307,1e-08,132.42,132.41,51.54308581]
[1744839703701,0.063,132.47,132.44,26.0]
[1744839704004,0.063,132.47,132.45,26.0]
[1744839704901,0.063,132.47,132.45,41.34060076]
[1744839705200,0.063,132.47,132.46,41.34060076]
[1744839705584,0.063,132.47,132.46,59.99024962]
[1744839705901,0.063,132.47,132.46,67.53969851]
[1744839706394,0.063,132.47,132.46,67.82402165]
[1744839707383,0.063,132.48,132.47,0.28432314]
[1744839707602,0.063,132.48,132.47,15.6249239]
[1744839708703,0.063,132.5,132.49,41.6249239]
[1744839709000,1e-08,132.5,132.49,77.17673433]
[1744839709591,0.063,132.52,132.49,139.53913737]